fUSD/lending_fUSD_20260217
["ID","MTS","AMOUNT","RATE_DAILY","PERIOD"]
[405840134,1771352493105,-500.0,6.697e-05,2]
[405840135,1771352493126,-500.0,6.697e-05,2]
[405840136,1771352493150,-500.0,6.697e-05,2]
[405840137,1771352493173,-500.0,6.697e-05,2]
[405840138,1771352493195,-500.0,6.697e-05,2]
[405840139,1771352493216,-500.0,6.697e-05,2]
[405840140,1771352493241,-500.0,6.697e-05,2]
[405840141,1771352493265,-500.0,6.697e-05,2]
[405840142,1771352493289,-500.0,6.697e-05,2]
[405840143,1771352493312,-500.0,6.697e-05,2]
[405840144,1771352493334,-250.0,6.697e-05,2]
[405840145,1771352493356,-500.0,6.697e-05,2]
[405840146,1771352493379,-500.0,6.697e-05,2]
[405840147,1771352493403,-500.0,6.697e-05,2]
[405840148,1771352493425,-500.0,6.697e-05,2]
[405840149,1771352493448,-500.0,6.697e-05,2]
[405840150,1771352493470,-500.0,6.697e-05,2]
[405840151,1771352493489,-1105.913,6.698e-05,2]
[405840152,1771352493510,-424944.8297772,6.698e-05,2]
[405840153,1771352493795,5627.111,6.564e-05,2]
[405840154,1771352493850,541.48,6.564e-05,2]
[405840162,1771352671196,5000.01,6.535e-05,2]
[405840163,1771352671216,5000.01,6.535e-05,2]
[405840164,1771352671237,5000.01,6.535e-05,2]
[405840165,1771352671257,5000.01,6.535e-05,2]
[405840166,1771352671278,5000.01,6.535e-05,2]
[405840167,1771352671303,5000.01,6.535e-05,2]
[405840168,1771352671327,5000.01,6.535e-05,2]
[405840169,1771352671350,5000.01,6.535e-05,2]
[405840170,1771352671373,5000.01,6.535e-05,2]
[405840171,1771352671395,5000.01,6.535e-05,2]
[405840172,1771352671417,3831.419,6.535e-05,2]
[405840173,1771352671438,10000.01,6.535e-05,2]
[405840174,1771352671460,10000.01,6.535e-05,2]
[405840175,1771352671480,10000.01,6.535e-05,2]
[405840176,1771352671502,10000.01,6.535e-05,2]
[405840177,1771352671522,10000.01,6.535e-05,2]
[405840178,1771352671543,10000.01,6.535e-05,2]
[405840179,1771352671564,10000.01,6.535e-05,2]
[405840180,1771352671584,10000.01,6.535e-05,2]
[405840181,1771352671603,10000.01,6.535e-05,2]
[405840182,1771352675049,-5000.01,6.535e-05,2]
[405840183,1771352675153,-5000.01,6.535e-05,2]
[405840184,1771352675164,-5000.01,6.535e-05,2]
[405840185,1771352675188,-5000.01,6.535e-05,2]
[405840186,1771352675199,-5000.01,6.535e-05,2]
[405840187,1771352675210,-5000.01,6.535e-05,2]
[405840188,1771352675250,-5000.01,6.535e-05,2]
[405840189,1771352675278,-5000.01,6.535e-05,2]
[405840190,1771352675295,-5000.01,6.535e-05,2]
[405840191,1771352675352,-5000.01,6.535e-05,2]
[405840192,1771352679970,-7732.6576264,6.535e-05,2]
[405840193,1771352679982,-5000.01,6.535e-05,2]
[405840194,1771352680083,-10000.01,6.535e-05,2]
[405840195,1771352680153,-5000.01,6.535e-05,2]
[405840196,1771352680216,-1036.1333736,6.535e-05,2]
[405840197,1771352706136,154.0,6.535e-05,3]
[405840250,1771353031696,-253.83271447,6.597e-05,2]
[405840251,1771353031792,-46.16728553,6.597e-05,2]
[405840252,1771353031802,-1200.0,6.597e-05,2]
[405840253,1771353031814,-300.0,6.597e-05,2]
[405840254,1771353031824,-150.0,6.597e-05,2]
[405840255,1771353031833,-250.0,6.597e-05,2]
[405840256,1771353031843,-27733.1849868,6.598e-05,2]
[405840257,1771353031854,-104077.18727969,6.598e-05,2]
[405840258,1771353031866,-128116.3973457,6.598e-05,2]
[405840455,1771353039791,-151.0,6.595e-05,2]
[405840456,1771353039801,-3240073.23038781,6.598e-05,2]
[405840457,1771353039811,-5209.65985741,6.695e-05,2]
[405840458,1771353039823,-500.0,6.697e-05,2]
[405840459,1771353039833,-500.0,6.697e-05,2]
[405840460,1771353039842,-500.0,6.697e-05,2]
[405840461,1771353039851,-500.0,6.697e-05,2]
[405840462,1771353039860,-500.0,6.697e-05,2]
[405840463,1771353039870,-500.0,6.697e-05,2]
[405840464,1771353039880,-500.0,6.697e-05,2]
[405840465,1771353039890,-500.0,6.697e-05,2]
[405840466,1771353039899,-500.0,6.697e-05,2]
[405840467,1771353039909,-500.0,6.697e-05,2]
[405840468,1771353039919,-500.0,6.697e-05,2]
[405840469,1771353039927,-500.0,6.697e-05,2]
[405840470,1771353039936,-500.0,6.697e-05,2]
[405840471,1771353039945,-500.0,6.697e-05,2]
[405840472,1771353039955,-500.0,6.697e-05,2]
[405840473,1771353039964,-500.0,6.697e-05,2]
[405840474,1771353039973,-500.0,6.697e-05,2]
[405840475,1771353039982,-500.0,6.697e-05,2]
[405840476,1771353039990,-500.0,6.697e-05,2]
[405840477,1771353039999,-500.0,6.697e-05,2]
[405840478,1771353040009,-500.0,6.697e-05,2]
[405840479,1771353040019,-500.0,6.697e-05,2]
[405840480,1771353040028,-165.92595278,6.697e-05,2]
[405840481,1771353040037,-500.0,6.697e-05,2]
[405840482,1771353040046,-500.0,6.697e-05,2]
[405840483,1771353040055,-500.0,6.697e-05,2]
[405840484,1771353040064,-500.0,6.697e-05,2]
[405840485,1771353040075,-500.0,6.697e-05,2]
[405840486,1771353040083,-500.0,6.697e-05,2]
[405840487,1771353040092,-500.0,6.697e-05,2]
[405840488,1771353040102,-300.0,6.697e-05,2]
[405840489,1771353040111,-170.41989638,6.697e-05,2]
[405840490,1771353040121,-159.74599529,6.697e-05,2]
[405840491,1771353040130,-500.0,6.697e-05,2]
[405840492,1771353040139,-1067.06589275,6.697e-05,2]
[405840493,1771353040148,-1000.0,6.697e-05,2]
[405840494,1771353040157,-1073.58,6.697e-05,2]
[405840495,1771353040166,-225.87,6.7e-05,2]
[405840497,1771353040175,-246.4,6.7e-05,2]
[405840499,1771353040185,-19800.0,6.7e-05,2]
[405840501,1771353040194,-979.46,6.741e-05,2]
[405840503,1771353040203,-979.46,6.797e-05,2]
[405840505,1771353040213,-150.99,6.8e-05,2]
[405840507,1771353040222,-9999.99,6.8e-05,2]
[405840509,1771353040231,-9999.99,6.8e-05,2]
[405840511,1771353040240,-9999.99,6.8e-05,2]
[405840514,1771353040250,-39700.0,6.8e-05,2]
[405840515,1771353040259,-150.0,6.85e-05,2]
[405840518,1771353040268,-346.58,6.854e-05,2]
[405840519,1771353040277,-150.99,6.854e-05,2]
[405840522,1771353040287,-299.99,6.854e-05,2]
[405840524,1771353040295,-1184.93,6.854e-05,2]
[405840526,1771353040306,-979.46,6.854e-05,2]
[405840528,1771353040314,-1128.0,6.859e-05,2]
[405840529,1771353040324,-418.57102133,6.863e-05,2]
[405840531,1771353040333,-151.0,6.894e-05,2]
[405840533,1771353040344,-1390.0,6.895e-05,2]
[405840535,1771353040353,-9999.99,6.897e-05,2]
[405840537,1771353040362,-20005.55,6.897e-05,2]
[405840540,1771353040373,-65948.58,6.897e-05,2]
[405840541,1771353040385,-999.99,6.897e-05,2]
[405840543,1771353040395,-9999.99,6.897e-05,2]
[405840546,1771353040406,-59500.0,6.9e-05,2]
[405840548,1771353040415,-468.0,6.901e-05,2]
[405840550,1771353040427,-979.46,6.91e-05,2]
[405840552,1771353040436,-390.0,6.915e-05,2]
[405840554,1771353040445,-1632.0,6.932e-05,2]
[405840555,1771353040456,-870.0,6.946e-05,2]
[405840558,1771353040467,-979.46,6.966e-05,2]
[405840560,1771353040476,-1073.58,6.971e-05,2]
[405840562,1771353040485,-79400.0,7e-05,2]
[405840564,1771353040495,-979.46,7.022e-05,2]
[405840566,1771353040504,-979.46,7.079e-05,2]
[405840568,1771353040512,-1852.42,7.096e-05,2]
[405840570,1771353040521,-979.46,7.135e-05,2]
[405840572,1771353040530,-1073.58,7.245e-05,2]
[405840574,1771353040540,-420.0,7.256e-05,2]
[405840575,1771353040549,-1680.0,7.256e-05,2]
[405840576,1771353040558,-420.0,7.256e-05,2]
[405840577,1771353040568,-255.0,7.256e-05,2]
[405840578,1771353040579,-250.0,7.257e-05,2]
[405840579,1771353040588,-250.0,7.258e-05,2]
[405840580,1771353040597,-184.8,7.3e-05,2]
[405840581,1771353040608,-1073.58,7.519e-05,2]
[405840582,1771353040618,-1073.58,7.793e-05,2]
[405840583,1771353040628,-2351.0,7.982e-05,2]
[405840584,1771353040639,-587.0,7.982e-05,2]
[405840585,1771353040649,-587.0,7.982e-05,2]
[405840586,1771353040659,-433.0,7.982e-05,2]
[405840587,1771353040670,-310.04873698,8e-05,2]
[405840588,1771353040679,-1073.58,8.067e-05,2]
[405840589,1771353040688,-600.0,8.092e-05,2]
[405840590,1771353040697,-23454.9,8.206e-05,2]
[405840591,1771353040707,-500.0,8.219e-05,2]
[405840592,1771353040717,-500.0,8.219e-05,2]
[405840593,1771353040726,-500.0,8.219e-05,2]
[405840594,1771353040736,-572.03500068,8.219e-05,2]
[405840595,1771353040746,-500.0,8.219e-05,2]
[405840596,1771353040755,-500.0,8.219e-05,2]
[405840597,1771353040765,-150.0,8.219e-05,2]
[405840598,1771353040775,-500.0,8.219e-05,2]
[405840599,1771353040785,-500.0,8.219e-05,2]
[405840600,1771353040794,-500.0,8.219e-05,2]
[405840601,1771353040805,-500.0,8.219e-05,2]
[405840602,1771353040815,-500.0,8.219e-05,2]
[405840603,1771353040825,-201.09695119,8.219e-05,2]
[405840604,1771353040835,-500.0,8.219e-05,2]
[405840605,1771353040845,-150.0,8.219e-05,2]
[405840606,1771353040855,-150.0,8.219e-05,2]
[405840607,1771353040864,-150.0,8.219e-05,2]
[405840608,1771353040874,-150.0,8.219e-05,2]
[405840609,1771353040887,-500.0,8.219e-05,2]
[405840610,1771353040897,-500.0,8.219e-05,2]
[405840611,1771353040907,-150.0,8.219e-05,2]
[405840612,1771353040917,-2406.5,8.219e-05,2]
[405840613,1771353040926,-339.62,8.219e-05,2]
[405840614,1771353040935,-500.0,8.219e-05,2]
[405840615,1771353040945,-500.0,8.274e-05,2]
[405840616,1771353040955,-500.0,8.274e-05,2]
[405840617,1771353040966,-150.0,8.274e-05,2]
[405840618,1771353040975,-500.0,8.274e-05,2]
[405840619,1771353040985,-500.0,8.274e-05,2]
[405840620,1771353040994,-500.0,8.274e-05,2]
[405840621,1771353041003,-500.0,8.274e-05,2]
[405840622,1771353041012,-500.0,8.274e-05,2]
[405840623,1771353041021,-500.0,8.274e-05,2]
[405840624,1771353041031,-244.28993987,8.274e-05,2]
[405840625,1771353041040,-150.0,8.274e-05,2]
[405840626,1771353041050,-150.0,8.274e-05,2]
[405840627,1771353041060,-150.0,8.274e-05,2]
[405840628,1771353041072,-500.0,8.274e-05,2]
[405840629,1771353041082,-500.0,8.274e-05,2]
[405840630,1771353041092,-150.0,8.274e-05,2]
[405840631,1771353041102,-500.0,8.329e-05,2]
[405840632,1771353041112,-500.0,8.329e-05,2]
[405840633,1771353041123,-150.0,8.329e-05,2]
[405840634,1771353041132,-500.0,8.329e-05,2]
[405840635,1771353041142,-500.0,8.329e-05,2]
[405840636,1771353041151,-500.0,8.329e-05,2]
[405840637,1771353041161,-152.12850518,8.329e-05,2]
[405840638,1771353041171,-500.0,8.329e-05,2]
[405840639,1771353041180,-500.0,8.329e-05,2]
[405840640,1771353041191,-150.0,8.329e-05,2]
[405840641,1771353041201,-200.36674187,8.329e-05,2]
[405840642,1771353041210,-200.18645604,8.329e-05,2]
[405840643,1771353041219,-500.0,8.329e-05,2]
[405840644,1771353041229,-500.0,8.329e-05,2]
[405840645,1771353041239,-242.84628954,8.329e-05,2]
[405840646,1771353041248,-1073.58,8.341e-05,2]
[405840647,1771353041258,-500.0,8.383e-05,2]
[405840648,1771353041269,-500.0,8.383e-05,2]
[405840649,1771353041279,-295.69274942,8.383e-05,2]
[405840650,1771353041288,-500.0,8.383e-05,2]
[405840651,1771353041297,-500.0,8.383e-05,2]
[405840652,1771353041307,-500.0,8.383e-05,2]
[405840653,1771353041317,-500.33776257,8.383e-05,2]
[405840654,1771353041328,-500.0,8.383e-05,2]
[405840655,1771353041337,-200.89245722,8.383e-05,2]
[405840656,1771353041346,-500.0,8.383e-05,2]
[405840657,1771353041356,-500.0,8.383e-05,2]
[405840658,1771353041365,-475.49905426,8.438e-05,2]
[405840659,1771353041376,-500.0,8.438e-05,2]
[405840660,1771353041388,-464.38268717,8.438e-05,2]
[405840661,1771353041398,-500.0,8.438e-05,2]
[405840662,1771353041408,-500.0,8.438e-05,2]
[405840663,1771353041420,-500.0,8.438e-05,2]
[405840664,1771353041430,-500.0,8.438e-05,2]
[405840665,1771353041440,-500.0,8.438e-05,2]
[405840666,1771353041452,-500.0,8.493e-05,2]
[405840667,1771353041462,-500.0,8.493e-05,2]
[405840668,1771353041472,-500.0,8.493e-05,2]
[405840669,1771353041482,-500.0,8.493e-05,2]
[405840670,1771353041491,-500.0,8.493e-05,2]
[405840671,1771353041502,-500.0,8.493e-05,2]
[405840672,1771353041512,-500.0,8.493e-05,2]
[405840673,1771353041522,-500.0,8.548e-05,2]
[405840674,1771353041532,-500.0,8.548e-05,2]
[405840675,1771353041543,-500.0,8.548e-05,2]
[405840676,1771353041554,-630.25617345,8.548e-05,2]
[405840677,1771353041563,-500.0,8.548e-05,2]
[405840678,1771353041574,-500.0,8.548e-05,2]
[405840679,1771353041583,-500.0,8.603e-05,2]
[405840680,1771353041592,-500.0,8.603e-05,2]
[405840681,1771353041601,-500.0,8.603e-05,2]
[405840682,1771353041610,-500.0,8.603e-05,2]
[405840683,1771353041620,-500.0,8.603e-05,2]
[405840684,1771353041629,-1073.62511856,8.615e-05,2]
[405840685,1771353041638,-500.0,8.626e-05,2]
[405840686,1771353041648,-500.0,8.626e-05,2]
[405840687,1771353041657,-500.0,8.626e-05,2]
[405840688,1771353041666,-150.0,8.626e-05,2]
[405840689,1771353041676,-150.0,8.626e-05,2]
[405840690,1771353041685,-500.0,8.626e-05,2]
[405840691,1771353041694,-500.0,8.626e-05,2]
[405840692,1771353041704,-500.0,8.626e-05,2]
[405840693,1771353041714,-150.0,8.626e-05,2]
[405840694,1771353041724,-150.0,8.626e-05,2]
[405840695,1771353041733,-500.0,8.626e-05,2]
[405840696,1771353041743,-500.0,8.626e-05,2]
[405840697,1771353041752,-500.0,8.626e-05,2]
[405840698,1771353041761,-150.0,8.626e-05,2]
[405840699,1771353041771,-500.0,8.626e-05,2]
[405840700,1771353041780,-150.0,8.626e-05,2]
[405840701,1771353041789,-500.0,8.626e-05,2]
[405840702,1771353041798,-500.0,8.657e-05,2]
[405840703,1771353041808,-500.0,8.657e-05,2]
[405840704,1771353041819,-500.0,8.657e-05,2]
[405840705,1771353041829,-500.0,8.657e-05,2]
[405840706,1771353041838,-153.2248447,8.657e-05,2]
[405840707,1771353041847,-339.62,8.676e-05,2]
[405840708,1771353041857,-510.76125773,8.681e-05,2]
[405840709,1771353041867,-500.0,8.681e-05,2]
[405840710,1771353041876,-500.0,8.681e-05,2]
[405840711,1771353041886,-150.0,8.681e-05,2]
[405840712,1771353041895,-500.0,8.681e-05,2]
[405840713,1771353041904,-500.0,8.681e-05,2]
[405840714,1771353041913,-500.0,8.681e-05,2]
[405840715,1771353041923,-500.0,8.681e-05,2]
[405840716,1771353041932,-500.0,8.681e-05,2]
[405840717,1771353041941,-500.0,8.681e-05,2]
[405840718,1771353041950,-150.0,8.681e-05,2]
[405840719,1771353041960,-500.0,8.681e-05,2]
[405840720,1771353041970,-150.0,8.681e-05,2]
[405840721,1771353041980,-500.87477363,8.681e-05,2]
[405840722,1771353041989,-500.0,8.712e-05,2]
[405840723,1771353042000,-500.0,8.712e-05,2]
[405840724,1771353042010,-361.9355564,8.712e-05,2]
[405840725,1771353042020,-500.0,8.712e-05,2]
[405840726,1771353042030,-250.0,8.714e-05,2]
[405840727,1771353042040,-500.0,8.736e-05,2]
[405840728,1771353042049,-378.36591542,8.736e-05,2]
[405840729,1771353042060,-237.18600864,8.736e-05,2]
[405840730,1771353042071,-500.0,8.736e-05,2]
[405840731,1771353042081,-500.0,8.736e-05,2]
[405840732,1771353042090,-500.0,8.736e-05,2]
[405840733,1771353042099,-500.0,8.736e-05,2]
[405840734,1771353042109,-500.0,8.736e-05,2]
[405840735,1771353042119,-329.95129651,8.736e-05,2]
[405840736,1771353042130,-150.0,8.736e-05,2]
[405840737,1771353042139,-500.0,8.736e-05,2]
[405840738,1771353042150,-150.0,8.736e-05,2]
[405840739,1771353042161,-500.0,8.767e-05,2]
[405840740,1771353042171,-500.0,8.767e-05,2]
[405840741,1771353042180,-500.0,8.767e-05,2]
[405840742,1771353042190,-500.0,8.767e-05,2]
[405840743,1771353042199,-3292.0,8.78e-05,2]
[405840744,1771353042208,-823.0,8.78e-05,2]
[405840745,1771353042217,-823.0,8.78e-05,2]
[405840746,1771353042226,-736.0,8.78e-05,2]
[405840747,1771353042235,-500.0,8.79e-05,2]
[405840748,1771353042244,-500.0,8.79e-05,2]
[405840749,1771353042253,-500.0,8.79e-05,2]
[405840750,1771353042263,-500.0,8.79e-05,2]
[405840751,1771353042273,-500.0,8.79e-05,2]
[405840752,1771353042283,-500.0,8.79e-05,2]
[405840753,1771353042292,-250.53819001,8.79e-05,2]
[405840754,1771353042302,-500.0,8.79e-05,2]
[405840755,1771353042311,-237.36614029,8.79e-05,2]
[405840756,1771353042320,-500.0,8.822e-05,2]
[405840757,1771353042330,-500.0,8.822e-05,2]
[405840758,1771353042340,-163.51122534,8.822e-05,2]
[405840759,1771353042350,-1600.0,8.829e-05,2]
[405840760,1771353042360,-500.0,8.845e-05,2]
[405840761,1771353042370,-500.0,8.845e-05,2]
[405840762,1771353042384,-500.0,8.845e-05,2]
[405840763,1771353042394,-471.12228144,8.845e-05,2]
[405840764,1771353042404,-500.0,8.845e-05,2]
[405840765,1771353042414,-500.0,8.845e-05,2]
[405840766,1771353042425,-500.0,8.845e-05,2]
[405840767,1771353042435,-594.68179644,8.877e-05,2]
[405840768,1771353042447,-611.76249723,8.877e-05,2]
[405840769,1771353042456,-215.37,8.895e-05,2]
[405840770,1771353042467,-298.71,8.897e-05,2]
[405840772,1771353042477,-500.0,8.9e-05,2]
[405840773,1771353042486,-500.0,8.9e-05,2]
[405840774,1771353042496,-500.0,8.9e-05,2]
[405840775,1771353042506,-500.0,8.9e-05,2]
[405840776,1771353042517,-500.0,8.9e-05,2]
[405840778,1771353042527,-500.0,8.9e-05,2]
[405840780,1771353042537,-500.0,8.955e-05,2]
[405840781,1771353042547,-500.0,8.955e-05,2]
[405840782,1771353042558,-500.0,8.955e-05,2]
[405840783,1771353042567,-500.0,8.955e-05,2]
[405840784,1771353042579,-500.0,8.955e-05,2]
[405840785,1771353042589,-500.0,8.955e-05,2]
[405840786,1771353042598,-1783.63,9e-05,2]
[405840787,1771353042607,-500.0,9.01e-05,2]
[405840788,1771353042616,-500.0,9.01e-05,2]
[405840789,1771353042626,-500.0,9.01e-05,2]
[405840790,1771353042635,-500.0,9.01e-05,2]
[405840791,1771353042644,-500.0,9.01e-05,2]
[405840792,1771353042653,-155.81655615,9.01e-05,2]
[405840793,1771353042663,-500.0,9.041e-05,2]
[405840794,1771353042672,-500.0,9.064e-05,2]
[405840795,1771353042681,-500.0,9.064e-05,2]
[405840796,1771353042691,-500.0,9.064e-05,2]
[405840804,1771353042948,-500.0,9.064e-05,2]
[405840805,1771353042959,-500.0,9.064e-05,2]
[405840806,1771353042970,-500.0,9.119e-05,2]
[405840807,1771353042980,-500.0,9.119e-05,2]
[405840808,1771353042990,-500.0,9.119e-05,2]
[405840809,1771353043001,-500.0,9.119e-05,2]
[405840810,1771353043010,-339.62,9.132e-05,2]
[405840811,1771353043020,-500.0,9.174e-05,2]
[405840812,1771353043031,-500.0,9.174e-05,2]
[405840813,1771353043042,-500.0,9.174e-05,2]
[405840814,1771353043053,-500.0,9.174e-05,2]
[405840815,1771353043062,-500.0,9.229e-05,2]
[405840816,1771353043073,-292.49812506,9.229e-05,2]
[405840817,1771353043082,-500.0,9.229e-05,2]
[405840818,1771353043091,-512.26030593,9.229e-05,2]
[405840819,1771353043102,-259.01,9.275e-05,2]
[405840820,1771353043112,-500.0,9.284e-05,2]
[405840821,1771353043122,-500.0,9.284e-05,2]
[405840822,1771353043131,-500.0,9.315e-05,2]
[405840823,1771353043140,-616.33885806,9.338e-05,2]
[405840824,1771353043149,-500.0,9.338e-05,2]
[405840825,1771353043158,-500.0,9.393e-05,2]
[405840826,1771353043167,-500.0,9.448e-05,2]
[405840827,1771353043176,-500.0,9.503e-05,2]
[405840828,1771353043186,-500.0,9.558e-05,2]
[405840829,1771353043195,-500.0,9.589e-05,2]
[405840830,1771353043205,-339.62,9.589e-05,2]
[405840831,1771353043214,-320.0,9.612e-05,2]
[405840832,1771353043224,-4609.0,9.658e-05,2]
[405840833,1771353043233,-1152.0,9.658e-05,2]
[405840834,1771353043243,-1252.0,9.658e-05,2]
[405840835,1771353043252,-1152.0,9.658e-05,2]
[405840836,1771353043262,-9999.99,9.67e-05,2]
[405840837,1771353043272,-14381.39,9.67e-05,2]
[405840838,1771353043281,-1401.0,9.67e-05,2]
[405840839,1771353043291,-173.355935,9.824e-05,2]
[405840840,1771353043301,-500.0,9.863e-05,2]
[405840841,1771353043311,-1600.0,9.932e-05,2]
[405840842,1771353043322,-898.32890406,0.0001,2]
[405840843,1771353043331,-543.19683373,0.0001,2]
[405840844,1771353043341,-543.19683373,0.0001,2]
[405840845,1771353043352,-543.19683373,0.0001,2]
[405840846,1771353043361,-151.0,0.0001,2]
[405840847,1771353043371,-151.0,0.0001,2]
[405840848,1771353043385,-151.0,0.0001,2]
[405840849,1771353043396,-151.0,0.0001,2]
[405840850,1771353043407,-151.0,0.0001,2]
[405840851,1771353043417,-151.0,0.0001,2]
[405840852,1771353043426,-151.0,0.0001,2]
[405840853,1771353043436,-99300.0,0.0001,3]
[405840854,1771353043446,-500.0,0.0001,2]
[405840855,1771353043457,-500.0,0.0001,2]
[405840856,1771353043467,-500.0,0.0001,2]
[405840857,1771353043478,-500.0,0.0001,2]
[405840858,1771353043488,-500.0,0.0001,2]
[405840859,1771353043498,-500.0,0.0001,2]
[405840860,1771353043507,-500.0,0.0001,2]
[405840861,1771353043519,-500.0,0.0001,2]
[405840862,1771353043528,-500.0,0.0001,2]
[405840863,1771353043537,-500.0,0.0001,2]
[405840864,1771353043547,-500.0,0.0001,2]
[405840865,1771353043557,-500.0,0.0001,2]
[405840866,1771353043567,-500.0,0.0001,2]
[405840867,1771353043577,-500.0,0.0001,2]
[405840868,1771353043586,-500.0,0.0001,2]
[405840869,1771353043595,-500.0,0.0001,2]
[405840870,1771353043605,-500.0,0.0001,2]
[405840871,1771353043614,-500.0,0.0001,2]
[405840872,1771353043624,-500.0,0.0001,2]
[405840873,1771353043634,-500.0,0.0001,2]
[405840874,1771353043645,-500.0,0.0001,2]
[405840875,1771353043656,-500.0,0.0001,2]
[405840876,1771353043665,-200.0,0.0001,2]
[405840877,1771353043674,-151.0,0.0001,2]
[405840878,1771353043684,-151.0,0.0001,2]
[405840879,1771353043695,-151.0,0.0001,2]
[405840880,1771353043704,-151.0,0.0001,2]
[405840881,1771353043716,-151.0,0.0001,2]
[405840882,1771353043726,-151.0,0.0001,2]
[405840883,1771353043736,-151.0,0.0001,2]
[405840885,1771353043745,-151.0,0.0001,2]
[405840887,1771353043755,-151.0,0.0001,2]
[405840888,1771353043764,-151.0,0.0001,2]
[405840889,1771353043773,-151.0,0.0001,2]
[405840890,1771353043783,-151.0,0.0001,2]
[405840891,1771353043791,-151.0,0.0001,2]
[405840892,1771353043801,-151.0,0.0001,2]
[405840893,1771353043810,-151.0,0.0001,2]
[405840894,1771353043820,-151.0,0.0001,2]
[405840895,1771353043830,-151.0,0.0001,2]
[405840896,1771353043843,-200.0,0.0001,2]
[405840897,1771353043853,-151.0,0.0001,2]
[405840898,1771353043864,-151.0,0.0001,2]
[405840899,1771353043874,-151.0,0.0001,2]
[405840900,1771353043885,-151.0,0.0001,2]
[405840901,1771353043895,-151.0,0.0001,2]
[405840902,1771353043905,-151.0,0.0001,2]
[405840903,1771353043915,-500.0,0.0001,2]
[405840904,1771353043925,-151.0,0.0001,2]
[405840905,1771353043934,-151.0,0.0001,2]
[405840906,1771353043943,-151.0,0.0001,2]
[405840907,1771353043953,-151.0,0.0001,2]
[405840908,1771353043962,-164.43370107,0.0001,2]
[405840909,1771353043971,-151.0,0.0001,2]
[405840910,1771353043980,-151.0,0.0001,2]
[405840911,1771353043989,-151.0,0.0001,2]
[405840912,1771353043998,-151.0,0.0001,2]
[405840913,1771353044008,-840.90433579,0.0001,2]
[405840914,1771353044017,-175.22048755,0.0001,2]
[405840915,1771353044026,-186.02924219,0.0001,2]
[405840916,1771353044035,-337.0,0.0001,2]
[405840917,1771353044043,-337.0,0.0001,2]
[405840918,1771353044053,-337.85061866,0.0001,2]
[405840919,1771353044062,-1580.81275906,0.0001,2]
[405840920,1771353044071,-1580.81275906,0.0001,2]
[405840921,1771353044081,-339.62,0.00010046,2]
[405840922,1771353044090,-500.0,0.00010137,2]
[405840923,1771353044100,-21155.78997856,0.00010296,2]
[405840924,1771353044109,-500.0,0.00010411,2]
[405840925,1771353044118,-339.62,0.00010502,2]
[405840926,1771353044127,-200.0,0.00010548,2]
[405840927,1771353044136,-200.0,0.00010548,2]
[405840928,1771353044146,-500.0,0.00010548,2]
[405840929,1771353044156,-6453.0,0.00010624,2]
[405840930,1771353044165,-1613.0,0.00010624,2]
[405840931,1771353044175,-520.0,0.00010624,2]
[405840932,1771353044184,-2129.0,0.00010627,2]
[405840933,1771353044197,-500.0,0.00010685,2]
[405840934,1771353044206,-150.0,0.00010821,2]
[405840935,1771353044215,-4488.74151019,0.000109,2]
[405840936,1771353044225,-4488.74151012,0.000109,2]
[405840937,1771353044234,-4488.74151012,0.000109,2]
[405840938,1771353044244,-500.0,0.00010959,2]
[405840939,1771353044253,-16891.69,0.00010959,2]
[405840940,1771353044263,-339.62,0.00010959,2]